bitfinex/quotes_ETHUSD_20250114
["timestamp","ask_amount","ask_price","bid_price","bid_amount"]
[1736836864780,3.66918463,3186.7,3186.6,0.62167786]
[1736836866063,5.20868463,3186.7,3186.6,0.15794209]
[1736836866410,3.13823,3186.5,3186.4,0.46373577]
[1736836867113,3.13843,3186.3,3186.2,0.2496]
[1736836867530,3.13787,3186.9,3186.4,2.0]
[1736836868117,3.13787,3186.9,3186.5,1.04529439]
[1736836869328,3.13768,3187.1,3186.6,1.50913945]
[1736836870055,3.13768,3187.1,3186.7,0.46461211]
[1736836870754,0.62814748,3187.2,3186.7,0.92845717]
[1736836870908,0.21676475,3187.1,3186.7,0.92845717]
[1736836871150,4.67744,3186.8,3186.7,0.92845717]
[1736836871654,4.67744,3186.8,3186.7,0.46384506]
[1736836872043,3.13794,3186.8,3186.7,0.46384506]
[1736836872550,3.13794,3186.8,3186.7,0.15798851]
[1736836872711,1.5395,3187.1,3186.4,0.3143]
[1736836872911,3.13802,3186.8,3186.7,0.15798851]
[1736836873145,3.13802,3186.8,3186.4,0.3143]
[1736836873311,0.62814748,3187.2,3186.7,0.15798851]
[1736836873519,3.13778,3187.0,3186.5,1.04508166]
[1736836873901,3.13778,3187.0,3186.8,0.15792993]
[1736836874020,3.13778,3187.0,3186.5,1.50892672]
[1736836874226,3.13778,3187.0,3186.9,0.15787136]
[1736836874423,3.13778,3187.0,3186.6,1.5371]
[1736836874753,3.13778,3187.0,3186.6,2.58218166]
[1736836874960,3.13778,3187.0,3186.7,0.15798851]
[1736836875312,3.13778,3187.0,3186.7,0.62183357]
[1736836875759,3.13778,3187.0,3186.8,0.46448074]
[1736836876057,3.13778,3187.0,3186.8,0.62241067]
[1736836876962,3.76572748,3187.2,3186.8,0.62241067]
[1736836877163,3.80707,3187.7,3186.9,1.58547962]
[1736836877364,1.30291775,3187.7,3187.2,2.0]
[1736836877567,0.67,3187.7,3187.3,1.5541]
[1736836877863,0.67,3187.7,3187.3,1.71147461]
[1736836878641,0.67,3187.7,3187.4,0.46448074]
[1736836878977,0.67,3187.7,3187.5,0.15703005]
[1736836880753,0.67,3187.7,3187.3,1.5541]
[1736836881053,3.80698,3187.8,3187.6,0.1569715]
[1736836881226,3.80698,3187.8,3187.3,1.5541]
[1736836881727,3.80698,3187.8,3187.4,0.15708861]
[1736836882928,3.80698,3187.8,3187.4,0.62004259]
[1736836885046,3.80698,3187.8,3187.6,2.0]
[1736836885371,3.80698,3187.8,3187.7,0.15691296]
[1736836886447,0.005,3188.4,3187.9,3.13686]
[1736836886648,0.005,3188.4,3187.7,1.74238352]
[1736836886649,0.005,3188.4,3188.3,10.71852281]
[1736836886850,4.66232,3190.4,3189.4,1.5541]
[1736836887164,3.1345,3190.3,3189.7,2.0]
[1736836887345,0.25,3191.2,3189.7,2.0]
[1736836887346,4.55586281,3190.9,3189.7,3.5541]
[1736836887543,3.13428,3190.6,3189.7,2.14910987]
[1736836887756,3.1346,3190.2,3189.7,2.14910987]
[1736836888674,3.13428,3190.6,3189.7,2.14910987]
[1736836888675,3.1347,3190.1,3189.7,2.14910987]
[1736836890938,0.61704438,3190.4,3189.7,2.14910987]
[1736836891175,3.13479,3190.0,3189.7,2.14910987]
[1736836891812,0.61704438,3190.4,3189.7,2.14910987]
[1736836892011,3.1347,3190.1,3189.7,2.14910987]
[1736836894102,3.13451,3190.3,3189.7,2.14910987]
[1736836895210,3.13463,3190.2,3189.7,2.14910987]
[1736836895514,3.13436,3190.5,3189.7,3.80145789]
[1736836896345,3.13391,3190.9,3189.7,9.95154789]
[1736836896521,3.13391,3190.9,3189.7,9.91269987]
[1736836896726,3.38277,3192.1,3189.7,9.91269987]
[1736836896727,0.6210907,3191.0,3190.9,2.0]
[1736836896880,3.13321,3191.7,3191.3,2.0]
[1736836897080,3.13269,3192.2,3191.3,2.0]
[1736836897281,3.13303,3191.8,3191.3,2.0]
[1736836897589,3.13303,3191.8,3191.4,0.14811642]
[1736836898010,3.13332,3191.5,3191.4,0.14811642]
[1736836898330,1.5612,3191.6,3190.4,3.621]
[1736836898526,3.13356,3191.3,3190.8,2.0]
[1736836898725,3.13356,3191.3,3190.9,0.3143]
[1736836899107,3.13362,3191.2,3190.9,0.3143]
[1736836899290,3.13381,3191.0,3190.9,0.3143]
[1736836899689,3.13397,3190.9,3190.5,0.3143]
[1736836901332,3.446946,3191.3,3191.0,0.3143]
[1736836901333,3.13362,3191.2,3191.0,0.3143]
[1736836901708,3.13371,3191.1,3191.0,0.3143]
[1736836902369,3.13371,3191.1,3190.9,0.3143]
[1736836902809,3.13381,3191.0,3190.9,0.3143]
[1736836903663,3.447191,3191.0,3190.9,0.3143]
[1736836903960,3.13431,3190.5,3190.2,2.0]
[1736836904111,3.13412,3190.7,3190.2,2.0]
[1736836904313,1.5612,3190.9,3190.3,0.14531044]
[1736836904561,3.13391,3190.9,3190.3,0.14531044]
[1736836904763,3.13432,3190.5,3190.3,0.14531044]
[1736836905238,3.13443,3190.4,3190.2,2.0]
[1736836905856,3.1345,3190.3,3190.2,2.0]
[1736836906509,1.5612,3190.7,3190.2,2.0]
[1736836907030,3.13437,3190.5,3190.2,2.0]
[1736836907265,3.13441,3190.4,3190.2,2.0]
[1736836911962,3.13441,3190.4,3190.3,0.14597181]
[1736836912118,3.13441,3190.4,3190.2,2.0]
[1736836912357,3.13441,3190.4,3190.3,0.14597181]
[1736836912657,3.13441,3190.4,3190.2,2.0]
[1736836912861,3.13441,3190.4,3190.3,0.14597181]
[1736836913066,3.13441,3190.4,3190.3,0.43268255]
[1736836914245,3.447851,3190.4,3190.3,0.43268255]
[1736836914652,3.447851,3190.4,3190.3,0.8906044]
[1736836916035,3.447851,3190.4,3190.3,0.43268255]
[1736836917457,3.447851,3190.4,3190.3,0.8906044]
[1736836919068,3.447851,3190.4,3190.3,0.43268255]
[1736836920163,5.056851,3190.4,3190.3,0.43268255]
[1736836921250,5.056851,3190.4,3190.3,0.05408532]
[1736836921251,5.621851,3190.4,3190.3,0.05408532]
[1736836921562,5.621851,3190.4,3189.1,2.0]
[1736836921563,3.13558,3189.2,3189.1,2.0]
[1736836922662,1.609,3189.8,3189.1,2.0]
[1736836922861,3.13548,3189.4,3189.1,2.0]
[1736836923452,3.13551,3189.3,3189.1,2.0]
[1736836925775,3.13558,3189.2,3189.1,2.0]
[1736836926676,0.62231685,3189.5,3189.1,2.0]
[1736836926969,3.1354,3189.4,3189.1,2.0]
[1736836927170,3.13558,3189.2,3189.1,2.0]
[1736836928265,0.37577169,3189.3,3188.7,1.6561]
[1736836928440,3.13568,3189.1,3188.7,1.6561]
[1736836928864,3.13568,3189.1,3188.7,4.6561]
[1736836929063,3.13568,3189.1,3188.8,0.12795454]
[1736836929462,0.62231685,3189.5,3188.7,5.11765108]
[1736836929658,3.13551,3189.3,3188.9,0.12789604]
[1736836929956,3.13551,3189.3,3189.0,0.12783754]
[1736836930285,3.13568,3189.1,3188.7,5.11765108]
[1736836930861,0.99807354,3189.5,3188.7,5.11765108]
[1736836931064,3.13549,3189.3,3188.7,5.11765108]
[1736836931489,3.1357,3189.1,3188.7,5.11765108]
[1736836931846,3.1357,3189.1,3188.7,4.6561]
[1736836932357,0.41335635,3189.3,3188.7,4.6561]
[1736836932358,3.54891635,3189.3,3188.7,4.6561]
[1736836932901,3.13556,3189.3,3188.7,4.6561]
[1736836933583,3.75763685,3189.5,3189.1,2.0]
[1736836938507,0.62231685,3189.5,3189.1,2.0]
[1736836938812,3.13539,3189.4,3189.1,2.0]
[1736836941623,3.13469,3190.1,3189.5,2.0]
[1736836941787,3.13468,3190.2,3189.5,2.0]
[1736836941788,3.761797,3190.0,3189.5,2.0]
[1736836941988,0.5621851,3190.3,3189.5,2.0]
[1736836942295,3.13489,3189.9,3189.6,0.12849157]
[1736836942507,3.13489,3189.9,3189.5,2.0]
[1736836942809,3.13499,3189.8,3189.5,2.0]
[1736836942993,3.448489,3189.8,3189.3,2.0]
[1736836943196,3.13511,3189.7,3189.3,2.0]
[1736836943399,3.13511,3189.7,3189.4,0.12855075]
[1736836943898,3.1349,3189.9,3189.4,0.12855075]
[1736836944304,3.13483,3190.0,3189.4,0.12855075]
[1736836945597,3.13483,3190.0,3189.5,0.2890319]
[1736836945994,3.13483,3190.0,3189.6,0.1284338]
[1736836947183,3.13483,3190.0,3189.3,5.03135051]
[1736836947460,3.13483,3190.0,3189.7,0.12837533]
[1736836947617,3.13483,3190.0,3189.3,5.0]
[1736836947618,3.13498,3189.9,3189.3,5.0]
[1736836947830,3.13498,3189.9,3189.8,0.12811469]
[1736836947987,3.13498,3189.9,3189.3,5.0]
[1736836948190,3.13498,3189.9,3189.8,0.12811469]
[1736836948532,3.54823641,3189.9,3189.3,5.0]
[1736836948735,3.13498,3189.9,3189.8,0.12797607]
[1736836948888,3.135,3189.8,3189.3,5.0]
[1736836949710,0.62191007,3190.1,3189.3,5.0]
[1736836949907,3.13516,3189.7,3189.3,5.0]
[1736836950816,3.448676,3189.7,3189.3,5.0]
[1736836951217,3.13516,3189.7,3189.3,5.0]
[1736836951435,3.13138732,3189.7,3189.3,5.0]
[1736836951941,3.13493,3189.9,3189.3,5.0]
[1736836953739,0.62191007,3190.1,3189.4,0.3143]
[1736836954038,3.13503,3189.8,3189.4,0.44259082]
[1736836955851,3.1351,3189.7,3189.4,0.44259082]
[1736836956061,0.47068,3189.7,3189.4,0.44259082]
[1736836956341,3.13528,3189.5,3189.4,0.44259082]
[1736836957032,4.70665,3189.9,3189.4,0.44259082]
[1736836957204,3.13519,3189.6,3189.4,0.44259082]
[1736836958735,3.7523584,3189.6,3189.4,0.44259082]
[1736836958937,3.13528,3189.5,3189.4,0.44259082]
[1736836960416,3.1351,3189.7,3189.4,0.44259082]
[1736836960756,0.5621851,3190.3,3189.5,1.5647]
[1736836960757,3.1347,3190.1,3189.5,1.5647]
[1736836960951,0.63462951,3190.0,3189.5,1.5647]
[1736836961255,3.76943951,3190.0,3189.6,0.12852045]
[1736836961753,3.13491,3189.9,3189.6,0.12852045]
[1736836962729,3.135,3189.8,3189.6,0.12852045]
[1736836962918,0.63462951,3190.0,3189.6,0.12852045]
[1736836963115,3.13509,3189.7,3189.6,0.12852045]
[1736836964017,3.13522,3189.6,3189.3,3.5647]
[1736836966115,3.13502,3189.8,3189.3,3.5647]
[1736836967370,3.76944951,3190.0,3189.3,3.59605222]
[1736836968385,0.61290818,3190.5,3189.8,1.5647]
[1736836968541,3.74724818,3190.5,3189.8,1.59604617]
[1736836968735,3.74724818,3190.5,3189.8,1.91034617]
[1736836968944,3.74724818,3190.5,3189.8,1.879]
[1736836969355,0.61290818,3190.5,3189.8,1.879]
[1736836969709,0.61290818,3190.5,3189.8,0.3143]
[1736836969710,3.13489,3189.9,3189.8,0.3143]
[1736836970031,3.13512,3189.7,3189.3,3.5647]
[1736836970555,3.13512,3189.7,3189.4,0.12807712]
[1736836971055,3.13524,3189.6,3189.4,0.12807712]
[1736836973085,3.13528,3189.5,3189.4,0.12807712]
[1736836973269,3.448808,3189.5,3189.4,0.12807712]
[1736836973469,3.1355,3189.3,3189.1,0.3143]
[1736836973641,3.1355,3189.3,3188.9,5.0]
[1736836974858,3.448838,3189.5,3188.9,5.0]
[1736836975060,0.63620862,3189.8,3189.0,1.5482]
[1736836975297,1.4821,3190.6,3189.8,2.0]
[1736836975446,1.4821,3190.6,3189.9,1.5482]
[1736836976081,0.631532,3190.2,3189.9,1.5482]
[1736836976259,3.766212,3190.2,3189.9,1.5482]
[1736836976946,3.13468,3190.2,3189.9,1.5482]
[1736836978792,3.13468,3190.2,3190.0,0.12820091]
[1736836979459,3.13442,3190.4,3190.0,0.12820091]
[1736836980179,0.63543405,3190.3,3190.0,0.12820091]
[1736836982115,3.76997405,3190.3,3190.0,0.12820091]
[1736836983695,2.55173146,3190.3,3190.0,0.12820091]
[1736836984010,3.13469,3190.1,3189.8,2.0]
[1736836984193,1.01243146,3190.3,3189.8,2.0]
[1736836984397,3.76996405,3190.3,3189.8,2.0]
[1736836984752,0.63543405,3190.3,3189.9,1.5383]
[1736836984895,0.63543405,3190.3,3189.9,4.5383]
[1736836985148,3.13424,3190.6,3189.9,4.56964551]
[1736836985921,3.13431,3190.5,3189.9,4.5383]
[1736836986968,0.62940355,3190.4,3189.9,4.5383]
[1736836987208,0.62940355,3190.4,3190.0,0.12803341]
[1736836990672,3.13431,3190.5,3190.0,0.12803341]
[1736836991171,3.13412,3190.7,3190.2,2.0]
[1736836991334,3.13412,3190.7,3190.3,1.5383]
[1736836991535,3.13412,3190.7,3190.3,1.66615805]
[1736836992599,3.13383,3191.0,3190.6,2.0]
[1736836992930,3.13383,3191.0,3190.7,0.12762429]
[1736836993169,1.5393,3191.5,3190.8,1.5383]
[1736836993378,3.1336,3191.3,3190.8,1.5383]
[1736836993574,3.1336,3191.3,3191.0,0.3143]
[1736836993869,0.63300398,3191.2,3191.1,0.12739059]
[1736836994075,3.1336,3191.3,3190.8,1.5383]
[1736836994375,3.76013643,3191.3,3191.1,0.12739059]
[1736836994527,3.76013643,3191.3,3190.8,1.5383]
[1736836995053,3.76013643,3191.3,3190.9,0.12750743]
[1736836995541,3.13364,3191.2,3190.9,0.12750743]
[1736836995944,0.62653643,3191.3,3190.9,0.12750743]
[1736836997286,0.62653643,3191.3,3191.1,2.0]
[1736836997639,0.62653643,3191.3,3191.2,0.12609066]
[1736836999548,3.76004643,3191.3,3191.2,0.12609066]
[1736836999785,3.76004643,3191.3,3190.8,1.5383]
[1736836999786,3.13374,3191.1,3190.8,1.5383]
[1736836999943,3.13362,3191.2,3190.8,1.5383]
[1736837000275,3.1338,3191.1,3190.9,0.12626592]
[1736837000843,3.1338,3191.1,3190.7,0.4543]
[1736837001085,3.1338,3191.1,3191.0,0.12620749]
[1736837001237,1.00254107,3191.3,3190.7,0.4543]
[1736837001437,3.13383,3191.0,3190.7,0.3143]
[1736837002096,3.13383,3191.0,3190.8,0.12628971]
[1736837002390,3.13383,3191.0,3190.7,0.3143]
[1736837002545,3.13383,3191.0,3190.9,0.12623128]
[1736837002745,3.13383,3191.0,3190.8,0.12628971]
[1736837002983,3.13383,3191.0,3190.9,0.12623128]
[1736837003180,4.29273,3191.2,3190.9,0.12623128]
[1736837003388,4.29273,3191.2,3190.7,0.3143]
[1736837003585,2.00197611,3191.2,3191.0,0.12617286]
[1736837003772,3.13371,3191.1,3190.7,0.3143]
[1736837005527,3.13381,3191.0,3190.7,0.3143]
[1736837005891,3.97651611,3191.2,3190.7,0.3143]
[1736837006114,3.13364,3191.2,3190.7,0.3143]
[1736837006514,3.13364,3191.2,3190.8,1.1827]
[1736837006823,0.62653643,3191.3,3190.8,1.1827]
[1736837007295,0.62653643,3191.3,3191.1,2.0]
[1736837010523,3.76005643,3191.3,3191.1,2.0]
[1736837012359,3.13361,3191.2,3190.8,1.1827]
[1736837012510,3.13372,3191.1,3190.8,1.1827]
[1736837013740,3.13372,3191.1,3190.9,0.3143]
[1736837014841,3.13391,3190.9,3190.8,0.3143]
[1736837014996,3.13371,3191.1,3190.8,0.3143]
[1736837017251,3.13371,3191.1,3190.9,0.12618509]
[1736837019217,3.13381,3191.0,3190.9,0.12618509]
[1736837019647,3.557791,3191.0,3190.9,0.12618509]
[1736837019888,3.557791,3191.0,3190.3,3.1582]
[1736837020065,3.13399,3190.9,3190.3,3.1582]
[1736837020231,1.106,3191.2,3190.3,3.1582]
[1736837020232,3.13401,3190.8,3190.3,3.1582]
[1736837020436,3.1341,3190.7,3190.3,3.1582]
[1736837021525,3.1341,3190.7,3190.4,0.57793886]
[1736837023137,3.1341,3190.7,3190.3,3.1582]
[1736837023768,3.1341,3190.7,3190.4,0.3143]
[1736837025153,3.13423,3190.6,3190.4,0.3143]
[1736837025524,3.1343,3190.5,3190.4,0.3143]
[1736837027053,3.1343,3190.5,3190.1,0.3143]
[1736837027238,3.13448,3190.4,3190.1,0.3143]
[1736837027436,1.106,3190.6,3190.1,0.3143]
[1736837027731,0.37576933,3190.7,3190.0,0.505]
[1736837027732,4.24069,3190.1,3190.0,0.505]
[1736837027953,3.13469,3190.1,3190.0,0.505]
[1736837028256,3.1343,3190.5,3190.0,1.6632]
[1736837028667,3.1343,3190.5,3190.0,1.78577473]
[1736837030959,3.13459,3190.2,3190.0,0.62757473]
[1736837031369,3.13463,3190.2,3190.0,0.62757473]
[1736837031612,3.13469,3190.1,3190.0,0.62757473]
[1736837033164,3.13469,3190.1,3190.0,0.505]
[1736837033474,3.68469,3190.1,3190.0,0.505]
[1736837033780,4.46655528,3190.1,3190.0,0.8193]
[1736837035633,5.09441457,3190.1,3190.0,0.8193]
[1736837038081,5.09441457,3190.1,3190.0,0.505]
[1736837039542,6.05321457,3190.1,3190.0,0.505]
[1736837039939,6.07571457,3190.1,3190.0,0.505]
[1736837040155,6.05321457,3190.1,3190.0,0.16994625]
[1736837041498,6.20821258,3190.1,3190.0,0.16994625]
[1736837047375,6.22321258,3190.1,3190.0,0.16994625]
[1736837047609,6.23071258,3190.1,3190.0,0.16994625]
[1736837052962,9.23071258,3190.1,3190.0,0.16994625]
[1736837053187,0.9588,3189.9,3189.1,1.1582]
[1736837053505,3.13587,3188.9,3188.7,0.3143]
[1736837054097,3.13597,3188.8,3188.7,0.3143]
[1736837054775,3.13602,3188.8,3188.6,1.0167]
[1736837055183,3.13607,3188.7,3188.6,1.0167]
[1736837060391,3.13633,3188.5,3188.4,1.0123]
[1736837061997,3.13633,3188.5,3188.4,1.13799461]
[1736837062329,3.13633,3188.5,3188.4,0.12569461]
[1736837062527,1.0151,3188.7,3188.1,1.3266]
[1736837062827,3.1365,3188.3,3188.2,0.12595006]
[1736837065404,0.63720271,3188.8,3188.2,0.12595006]
[1736837065611,3.13617,3188.6,3188.2,0.12595006]
[1736837066215,0.63720271,3188.8,3188.2,0.12595006]
[1736837066439,3.13627,3188.5,3188.2,0.12595006]
[1736837069204,3.1364,3188.4,3188.2,0.12595006]
[1736837069421,3.13646,3188.3,3188.2,0.12595006]
[1736837073142,1.01451698,3188.8,3188.2,0.12595006]
[1736837073452,3.13629,3188.5,3188.2,0.12595006]
[1736837073605,0.63720271,3188.8,3188.2,0.12595006]
[1736837073806,3.13638,3188.4,3188.2,0.12595006]
[1736837077308,3.77322271,3188.8,3188.2,0.12595006]
[1736837077508,3.13607,3188.7,3188.2,0.12595006]
[1736837077762,3.13645,3188.4,3188.2,0.12595006]
[1736837079560,3.13646,3188.3,3188.2,0.12595006]
[1736837080764,3.13646,3188.3,3188.0,0.3143]
[1736837081060,3.13625,3188.6,3188.3,0.9851]
[1736837081450,3.13625,3188.6,3188.4,0.12607522]
[1736837082846,0.63720271,3188.8,3188.4,0.12607522]
[1736837083050,3.13627,3188.5,3188.4,0.12607522]
[1736837084470,3.13627,3188.5,3188.3,0.9851]
[1736837086136,3.13611,3188.7,3188.3,0.9851]
[1736837086543,3.13611,3188.7,3188.4,0.12597718]
[1736837088883,3.1362,3188.6,3188.4,0.12597718]
[1736837095013,0.63720271,3188.8,3188.4,0.12597718]
[1736837095213,3.13627,3188.5,3188.4,0.12597718]
[1736837097113,0.63720271,3188.8,3188.4,0.12597718]
[1736837097294,3.13589,3188.9,3188.5,1.41865654]
[1736837097495,0.9443,3189.1,3188.7,2.40375654]
[1736837097496,0.63494456,3189.1,3188.7,2.40375654]
[1736837097660,3.76690152,3189.1,3188.7,2.40375654]
[1736837097863,3.76690152,3189.1,3188.8,0.12546057]
[1736837098283,3.76690152,3189.1,3188.7,0.9851]
[1736837098494,3.13577,3189.0,3188.9,0.12540207]
[1736837098688,3.13577,3189.0,3188.8,0.12546057]
[1736837098882,3.13577,3189.0,3188.9,0.12540207]
[1736837099307,3.13577,3189.0,3188.7,0.9851]
[1736837099625,3.13577,3189.0,3188.8,0.12546057]
[1736837099965,3.13577,3189.0,3188.7,0.9851]
[1736837100166,3.13577,3189.0,3188.8,0.12546057]
[1736837100496,3.13577,3189.0,3188.7,0.9851]
[1736837100692,3.13577,3189.0,3188.9,0.12540207]
[1736837100891,3.13577,3189.0,3188.8,0.12546057]
[1736837101214,3.13577,3189.0,3188.9,0.12540207]
[1736837101509,2.88617,3189.0,3188.7,2.40375654]
[1736837101659,2.88617,3189.0,3188.9,0.12540207]
[1736837101894,2.88617,3189.0,3188.7,2.40375654]
[1736837101895,2.88617,3189.0,3188.8,0.12546057]
[1736837102058,2.88617,3189.0,3188.9,0.12540207]
[1736837102508,2.88617,3189.0,3188.7,0.9851]
[1736837102713,2.88617,3189.0,3188.9,0.12540207]
[1736837102937,2.88617,3189.0,3188.8,0.12528761]
[1736837103115,2.88617,3189.0,3188.9,0.1252291]
[1736837103507,2.88617,3189.0,3188.6,2.0]
[1736837103667,2.88617,3189.0,3188.9,0.12522334]
[1736837103865,2.88617,3189.0,3188.6,2.0]
[1736837104082,2.88617,3189.0,3188.9,0.12522334]
[1736837104604,2.88617,3189.0,3188.6,2.0]
[1736837104803,2.88617,3189.0,3188.7,0.12534034]
[1736837105530,3.13561,3189.2,3188.7,1.54399688]
[1736837105683,3.13568,3189.1,3188.7,1.54399688]
[1736837107723,3.13568,3189.1,3188.7,0.12534034]
[1736837108220,0.61955267,3189.2,3188.7,0.12534034]
[1736837108428,3.13579,3189.0,3188.7,0.12534034]
[1736837109247,3.13597,3188.8,3188.7,0.12534034]
[1736837109528,4.08227,3188.8,3188.7,0.12534034]
[1736837110024,4.08227,3188.8,3188.7,0.12513854]
[1736837110189,3.13618,3188.6,3188.4,0.3142]
[1736837110399,3.13618,3188.6,3188.5,0.12525556]
[1736837111146,3.13618,3188.6,3188.3,0.3142]
[1736837111510,3.13618,3188.6,3188.4,0.43952561]
[1736837111940,3.544428,3188.6,3188.4,0.43952561]
[1736837112253,3.13618,3188.6,3188.4,0.43952561]
[1736837114166,0.9463,3188.8,3188.4,0.43952561]
[1736837114371,3.13623,3188.6,3188.4,0.43952561]
[1736837114556,3.13627,3188.5,3188.4,0.43952561]
[1736837117262,3.13627,3188.5,3188.4,0.12532561]
[1736837117767,3.13627,3188.5,3188.4,0.12554471]
[1736837117971,3.75906301,3188.5,3188.2,2.0]
[1736837118172,3.13627,3188.5,3188.2,3.41865654]
[1736837118472,3.13627,3188.5,3188.3,0.12560323]
[1736837123474,4.55501654,3188.4,3188.3,0.12560323]
[1736837124021,0.62423815,3188.6,3188.3,1.41865654]
[1736837124133,3.13554,3189.3,3188.5,3.41865654]
[1736837124337,3.13554,3189.3,3188.6,1.09976396]
[1736837124549,3.13552,3189.3,3188.6,1.09976396]
[1736837124941,0.9743,3189.5,3188.6,1.09976396]
[1736837125141,3.13561,3189.2,3188.6,1.09976396]
[1736837125957,3.13568,3189.1,3188.6,1.09976396]
[1736837126176,3.13593,3188.9,3188.6,1.09976396]
[1736837126374,2.39295654,3189.1,3188.6,0.12596396]
[1736837126548,3.13607,3188.7,3188.6,0.12596396]
[1736837126749,3.13607,3188.7,3188.4,0.79744261]
[1736837127056,3.13618,3188.6,3188.5,0.12575721]
[1736837127774,3.449798,3188.6,3188.5,0.12575721]
[1736837127963,0.313618,3188.6,3188.1,0.9738]
[1736837128157,3.13639,3188.4,3188.1,0.9738]
[1736837128361,3.13639,3188.4,3188.2,0.12593276]
[1736837128674,3.13646,3188.3,3188.2,0.12593276]
[1736837129182,3.13646,3188.3,3188.0,2.0]
[1736837129397,3.13646,3188.3,3188.1,0.12599129]
[1736837130850,3.13656,3188.2,3188.1,0.12599129]
[1736837131239,3.13656,3188.2,3187.9,0.9738]
[1736837131439,3.13666,3188.1,3188.0,0.12608442]
[1736837131648,3.13666,3188.1,3187.7,1.2817]
[1736837131853,3.13666,3188.1,3188.0,0.12608442]
[1736837132054,3.13666,3188.1,3187.7,1.2817]
[1736837132343,0.62882331,3188.2,3187.7,1.2817]
[1736837132646,3.13695,3187.9,3187.8,0.15338379]
[1736837133152,3.13697,3187.8,3187.6,0.3142]
[1736837133540,0.15688233,3188.1,3187.4,0.3142]
[1736837133736,3.13686,3187.9,3187.4,0.3142]
[1736837135141,0.62882331,3188.2,3187.7,0.9675]
[1736837137178,0.62882331,3188.2,3187.8,0.15390863]
[1736837137346,1.56882331,3188.2,3187.7,0.9675]
[1736837137547,3.13691,3187.9,3187.8,0.1535753]
[1736837137871,3.13691,3187.9,3187.6,2.0]
[1736837138180,3.13691,3187.9,3187.8,0.15343108]
[1736837138507,3.13695,3187.8,3187.4,0.9675]
[1736837140165,3.13705,3187.7,3187.4,0.9675]
[1736837140370,3.13705,3187.7,3187.3,0.3142]
[1736837142991,0.61843684,3188.1,3187.3,0.3142]
[1736837143299,0.61843684,3188.1,3187.6,2.0]
[1736837144668,3.75510684,3188.1,3187.6,2.0]
[1736837145700,0.94,3188.9,3187.7,3.96481153]
[1736837145863,0.94,3188.9,3188.1,0.9675]
[1736837146063,3.13597,3188.8,3188.1,0.99886225]
[1736837146279,3.13597,3188.8,3188.1,0.9675]
[1736837146882,3.13637,3188.4,3188.1,0.9675]
[1736837147089,3.13648,3188.3,3188.0,2.0]
[1736837148078,1.55655155,3188.9,3188.1,0.9675]
[1736837148403,3.1361,3188.7,3188.1,0.9675]
[1736837148603,1.55655155,3188.9,3188.1,0.9675]
[1736837148772,3.13621,3188.6,3188.1,0.9675]
[1736837149322,3.13597,3188.8,3188.1,0.9675]
[1736837149612,0.61655155,3188.9,3188.2,0.9675]
[1736837149811,3.75250155,3188.9,3188.2,0.9675]
[1736837151322,0.94,3188.8,3188.2,0.9675]
[1736837151468,3.13613,3188.7,3188.2,0.9675]
[1736837151791,3.13618,3188.6,3188.2,0.9675]
[1736837152108,3.13618,3188.6,3188.3,0.15330147]
[1736837154174,4.07601,3188.8,3188.3,0.15330147]
[1736837155123,3.13607,3188.7,3188.3,0.15330147]
[1736837158820,0.94,3188.8,3188.3,0.15330147]
[1736837159008,3.13617,3188.6,3188.3,0.15330147]
[1736837159694,3.13628,3188.5,3188.3,0.15330147]
[1736837159900,0.94,3188.8,3188.3,0.15330147]
[1736837159901,4.07602,3188.8,3188.3,0.15330147]
[1736837160228,0.46925715,3188.7,3188.3,0.15330147]
[1736837160382,3.13617,3188.6,3188.0,0.9628]
[1736837160719,3.13617,3188.6,3187.8,3.139]
[1736837160720,3.13656,3188.2,3188.1,0.15301069]
[1736837161092,3.13694,3187.9,3187.7,0.48244401]
[1736837161504,3.13694,3187.9,3187.8,0.15318885]
[1736837161923,3.13694,3187.9,3187.7,0.48244401]
[1736837162123,3.13694,3187.9,3187.8,0.15318885]
[1736837162420,3.13694,3187.9,3187.5,0.9628]
[1736837162628,3.13694,3187.9,3187.6,0.15330764]
[1736837164029,0.70505657,3188.6,3187.6,0.15330764]
[1736837164030,0.9385,3188.8,3187.8,0.9628]
[1736837164228,3.13628,3188.5,3187.9,0.15375817]
[1736837165087,3.13609,3188.7,3188.2,0.9628]
[1736837165292,0.63535155,3188.4,3188.2,0.9628]
[1736837165517,0.63535155,3188.4,3188.3,0.15338797]
[1736837165825,3.13609,3188.7,3188.3,0.15338797]
[1736837166609,0.64069328,3188.6,3188.3,0.15338797]
[1736837167751,0.9385,3189.3,3188.3,0.15338797]
[1736837167906,3.13571,3189.1,3188.6,0.9628]
[1736837168299,3.13571,3189.1,3188.7,0.15290827]
[1736837169690,0.9385,3189.6,3188.8,0.9628]
[1736837169893,0.62127452,3189.3,3188.9,2.0]
[1736837170090,3.13509,3189.8,3189.1,0.9628]
[1736837170494,3.13509,3189.8,3189.3,2.0]
[1736837170797,0.61717767,3189.6,3189.4,0.15234293]
[1736837171627,3.75241767,3189.6,3189.1,0.9628]
[1736837171797,3.75241767,3189.6,3189.2,0.15223676]
[1736837174123,3.13529,3189.5,3189.2,0.15223676]
[1736837174319,3.13547,3189.4,3189.2,0.15223676]
[1736837174516,0.37524677,3189.5,3189.2,0.15223676]
[1736837174797,3.13558,3189.2,3188.8,0.9628]
[1736837175109,3.13558,3189.2,3188.9,0.15164207]
[1736837176266,3.13568,3189.1,3188.9,0.15164207]
[1736837178191,3.13551,3189.3,3188.9,0.15164207]
[1736837178635,3.13563,3189.2,3188.9,0.15164207]
[1736837179434,3.1357,3189.1,3188.9,0.15164207]
[1736837182345,4.38864,3189.0,3188.9,0.15164207]
[1736837182838,5.03133313,3189.0,3188.9,0.15186691]
[1736837183040,0.64269313,3189.0,3188.4,0.9107615]
[1736837183244,4.0745,3189.6,3188.8,0.8794]